[Event "Titled Tuesday Blitz March 15 Late 2022"]
[White "Aldokhin, Ivan"]
[Black "Ibarra Jerez, Jose Carlos"]
[WhiteFideId "24115720"]
[BlackFideId "2226332"]
[WhiteElo "2231"]
[BlackElo "2626"]
[Result "0-1"]
[Round "09"]
[TimeControl "180+1"]
[Date "2022.03.15"]
[WhiteClock "0:00:02"]
[BlackClock "0:00:46"]

1. d4 {[%clk 0:03:00]}  d5 {[%clk 0:02:58]} 2. c4 {[%clk 0:03:01]}  dxc4 {[%clk 0:02:57]} 3. e4 {[%clk 0:03:01]}  Nf6 {[%clk 0:02:55]} 4. e5 {[%clk 0:02:59]}  Nd5 {[%clk 0:02:56]} 5. Bxc4 {[%clk 0:02:59]}  Bf5 {[%clk 0:02:53]} 6. Nc3 {[%clk 0:02:57]}  c6 {[%clk 0:02:46]} 7. Nge2 {[%clk 0:02:54]}  e6 {[%clk 0:02:45]} 8. O-O {[%clk 0:02:51]}  Be7 {[%clk 0:02:44]} 9. Ng3 {[%clk 0:02:46]}  Bg6 {[%clk 0:02:44]} 10. Bb3 {[%clk 0:02:35]}  O-O {[%clk 0:02:43]} 11. Qe2 {[%clk 0:02:35]}  Nd7 {[%clk 0:02:40]} 12. Be3 {[%clk 0:02:28]}  N7b6 {[%clk 0:02:39]} 13. Rad1 {[%clk 0:02:27]}  Qd7 {[%clk 0:02:36]} 14. f4 {[%clk 0:02:25]}  Rad8 {[%clk 0:02:34]} 15. f5 {[%clk 0:02:12]}  exf5 {[%clk 0:02:32]} 16. Nxd5 {[%clk 0:02:11]}  Nxd5 {[%clk 0:02:31]} 17. Bc1 {[%clk 0:01:56]}  Qe6 {[%clk 0:02:01]} 18. a3 {[%clk 0:01:35]}  f4 {[%clk 0:01:47]} 19. Nh5 {[%clk 0:01:26]}  Bg5 {[%clk 0:01:22]} 20. Bxd5 {[%clk 0:00:52]}  Rxd5 {[%clk 0:01:19]} 21. Nxf4 {[%clk 0:00:53]}  Bxf4 {[%clk 0:01:16]} 22. Rxf4 {[%clk 0:00:49]}  Rfd8 {[%clk 0:01:17]} 23. Be3 {[%clk 0:00:43]}  c5 {[%clk 0:01:16]} 24. Re1 {[%clk 0:00:31]}  cxd4 {[%clk 0:01:14]} 25. Bd2 {[%clk 0:00:31]}  h6 {[%clk 0:01:12]} 26. h4 {[%clk 0:00:30]}  Re8 {[%clk 0:01:02]} 27. Qf2 {[%clk 0:00:18]}  Qb6 {[%clk 0:00:52]} 28. Kh2 {[%clk 0:00:09]}  Qxb2 {[%clk 0:00:47]} 29. h5 {[%clk 0:00:02]}  Bxh5 {[%clk 0:00:46]} 0-1


[Site "https://www.chess.com"]

[Event "Titled Tuesday Blitz March 15 Late 2022"]
[White "Ambartsumova, Karina"]
[Black "Cervantes Landeiro, Thalia"]
[WhiteFideId "4166299"]
[BlackFideId "3520498"]
[WhiteElo "2262"]
[BlackElo "2021"]
[Result "1-0"]
[Round "09"]
[TimeControl "180+1"]
[Date "2022.03.15"]
[WhiteClock "0:00:08"]
[BlackClock "0:00:05"]

1. c4 {[%clk 0:03:00]}  e5 {[%clk 0:02:58]} 2. Nc3 {[%clk 0:02:57]}  Nc6 {[%clk 0:02:57]} 3. Nf3 {[%clk 0:02:57]}  Nf6 {[%clk 0:02:57]} 4. a3 {[%clk 0:02:57]}  d5 {[%clk 0:02:52]} 5. cxd5 {[%clk 0:02:57]}  Nxd5 {[%clk 0:02:52]} 6. Qc2 {[%clk 0:02:58]}  Be6 {[%clk 0:02:36]} 7. e4 {[%clk 0:02:53]}  Nb6 {[%clk 0:02:30]} 8. Bb5 {[%clk 0:02:52]}  Bd6 {[%clk 0:02:26]} 9. d4 {[%clk 0:02:49]}  exd4 {[%clk 0:02:12]} 10. Nxd4 {[%clk 0:02:47]}  Bd7 {[%clk 0:02:11]} 11. Nxc6 {[%clk 0:02:46]}  bxc6 {[%clk 0:02:09]} 12. Be2 {[%clk 0:02:46]}  O-O {[%clk 0:02:08]} 13. O-O {[%clk 0:02:43]}  a5 {[%clk 0:02:02]} 14. f4 {[%clk 0:02:39]}  Qe7 {[%clk 0:01:49]} 15. e5 {[%clk 0:02:31]}  Bc5+ {[%clk 0:01:48]} 16. Kh1 {[%clk 0:02:31]}  Nd5 {[%clk 0:01:27]} 17. Ne4 {[%clk 0:02:23]}  Bf5 {[%clk 0:01:20]} 18. Bd3 {[%clk 0:01:44]}  Bxe4 {[%clk 0:00:45]} 19. Bxe4 {[%clk 0:01:43]}  g6 {[%clk 0:00:42]} 20. Bd2 {[%clk 0:01:36]}  Ne3 {[%clk 0:00:36]} 21. Bxe3 {[%clk 0:01:33]}  Bxe3 {[%clk 0:00:37]} 22. Bxc6 {[%clk 0:01:30]}  Rab8 {[%clk 0:00:34]} 23. Rae1 {[%clk 0:01:30]}  Bd4 {[%clk 0:00:33]} 24. b3 {[%clk 0:01:20]}  Qc5 {[%clk 0:00:29]} 25. Qxc5 {[%clk 0:01:12]}  Bxc5 {[%clk 0:00:30]} 26. Bd5 {[%clk 0:01:12]}  Bxa3 {[%clk 0:00:29]} 27. f5 {[%clk 0:01:13]}  Bb4 {[%clk 0:00:24]} 28. Rc1 {[%clk 0:01:06]}  Rbd8 {[%clk 0:00:19]} 29. Rcd1 {[%clk 0:00:49]}  Bc3 {[%clk 0:00:12]} 30. fxg6 {[%clk 0:00:46]}  hxg6 {[%clk 0:00:12]} 31. Bxf7+ {[%clk 0:00:45]}  Kg7 {[%clk 0:00:12]} 32. e6 {[%clk 0:00:45]}  Rxd1 {[%clk 0:00:11]} 33. Rxd1 {[%clk 0:00:46]}  Bf6 {[%clk 0:00:11]} 34. g3 {[%clk 0:00:30]}  Rd8 {[%clk 0:00:11]} 35. Rc1 {[%clk 0:00:30]}  Be5 {[%clk 0:00:11]} 36. Rc2 {[%clk 0:00:29]}  Kf6 {[%clk 0:00:10]} 37. Rc5 {[%clk 0:00:23]}  Rd1+ {[%clk 0:00:08]} 38. Kg2 {[%clk 0:00:22]}  Rd2+ {[%clk 0:00:08]} 39. Kh3 {[%clk 0:00:19]}  Bd6 {[%clk 0:00:08]} 40. Rxa5 {[%clk 0:00:18]}  Rb2 {[%clk 0:00:08]} 41. Rb5 {[%clk 0:00:14]}  g5 {[%clk 0:00:07]} 42. Bg8 {[%clk 0:00:11]}  Ke7 {[%clk 0:00:06]} 43. Rxg5 {[%clk 0:00:11]}  Rxb3 {[%clk 0:00:06]} 44. Bf7 {[%clk 0:00:09]}  Rb2 {[%clk 0:00:04]} 45. Rg8 {[%clk 0:00:09]}  Kf6 {[%clk 0:00:03]} 46. Rg6+ {[%clk 0:00:08]}  Ke7 {[%clk 0:00:03]} 47. Rh6 {[%clk 0:00:08]}  c5 {[%clk 0:00:03]} 48. Kg4 {[%clk 0:00:09]}  c4 {[%clk 0:00:03]} 49. Rh7 {[%clk 0:00:08]}  c3 {[%clk 0:00:02]} 50. Bg8+ {[%clk 0:00:08]}  Kf8 {[%clk 0:00:03]} 51. Rd7 {[%clk 0:00:06]}  Be7 {[%clk 0:00:01]} 52. Bh7 {[%clk 0:00:06]}  c2 {[%clk 0:00:02]} 53. Rc7 {[%clk 0:00:06]}  Bd6 {[%clk 0:00:01]} 54. Rxc2 {[%clk 0:00:05]}  Rxc2 {[%clk 0:00:02]} 55. Bxc2 {[%clk 0:00:06]}  Ke7 {[%clk 0:00:02]} 56. Bf5 {[%clk 0:00:07]}  Be5 {[%clk 0:00:03]} 57. Kf3 {[%clk 0:00:07]}  Bf6 {[%clk 0:00:03]} 58. h4 {[%clk 0:00:07]}  Bc3 {[%clk 0:00:04]} 59. g4 {[%clk 0:00:06]}  Kf6 {[%clk 0:00:04]} 60. Kf4 {[%clk 0:00:06]}  Bd2+ {[%clk 0:00:04]} 61. Ke4 {[%clk 0:00:06]}  Bb4 {[%clk 0:00:05]} 62. g5+ {[%clk 0:00:06]}  Kg7 {[%clk 0:00:06]} 63. Kf4 {[%clk 0:00:06]}  Be7 {[%clk 0:00:06]} 64. Kg4 {[%clk 0:00:07]}  Bd6 {[%clk 0:00:07]} 65. h5 {[%clk 0:00:07]}  Be7 {[%clk 0:00:08]} 66. h6+ {[%clk 0:00:07]}  Kh8 {[%clk 0:00:08]} 67. Kh5 {[%clk 0:00:08]}  Bd6 {[%clk 0:00:08]} 68. Kg6 {[%clk 0:00:08]}  Be7 {[%clk 0:00:08]} 69. Kh5 {[%clk 0:00:07]}  Bf8 {[%clk 0:00:06]} 70. g6 {[%clk 0:00:07]}  Be7 {[%clk 0:00:07]} 71. g7+ {[%clk 0:00:06]}  Kg8 {[%clk 0:00:07]} 72. Kg6 {[%clk 0:00:07]}  Bf6 {[%clk 0:00:05]} 73. h7# {[%clk 0:00:08]} 1-0


[Site "https://www.chess.com"]

[Event "Titled Tuesday Blitz March 15 Late 2022"]
[White "Arabidze, Meri"]
[Black "Janaszak, Dawid"]
[WhiteFideId "13604040"]
[BlackFideId "1119206"]
[WhiteElo "2335"]
[BlackElo "2199"]
[Result "1-0"]
[Round "09"]
[TimeControl "180+1"]
[Date "2022.03.15"]
[WhiteClock "0:00:32"]
[BlackClock "0:00:16"]

1. Nf3 {[%clk 0:03:00]}  c5 {[%clk 0:02:59]} 2. e3 {[%clk 0:02:59]}  g6 {[%clk 0:02:58]} 3. d4 {[%clk 0:02:59]}  Bg7 {[%clk 0:02:58]} 4. c4 {[%clk 0:02:59]}  cxd4 {[%clk 0:02:57]} 5. exd4 {[%clk 0:02:58]}  Nf6 {[%clk 0:02:58]} 6. Nc3 {[%clk 0:02:58]}  d5 {[%clk 0:02:58]} 7. cxd5 {[%clk 0:02:57]}  Nxd5 {[%clk 0:02:59]} 8. Bb5+ {[%clk 0:02:56]}  Nc6 {[%clk 0:02:59]} 9. O-O {[%clk 0:02:55]}  O-O {[%clk 0:02:58]} 10. Re1 {[%clk 0:02:55]}  Bg4 {[%clk 0:02:56]} 11. Bxc6 {[%clk 0:02:34]}  bxc6 {[%clk 0:02:56]} 12. Be3 {[%clk 0:02:31]}  Rb8 {[%clk 0:02:48]} 13. Na4 {[%clk 0:02:27]}  Qa5 {[%clk 0:02:42]} 14. b3 {[%clk 0:02:15]}  Rfd8 {[%clk 0:02:27]} 15. h3 {[%clk 0:02:05]}  Bf5 {[%clk 0:02:23]} 16. Qd2 {[%clk 0:02:00]}  Qxd2 {[%clk 0:02:11]} 17. Bxd2 {[%clk 0:02:01]}  Kf8 {[%clk 0:02:00]} 18. Ne5 {[%clk 0:01:52]}  Bd7 {[%clk 0:01:31]} 19. Rac1 {[%clk 0:01:50]}  Rbc8 {[%clk 0:01:28]} 20. Nc5 {[%clk 0:01:47]}  Be8 {[%clk 0:01:25]} 21. Nb7 {[%clk 0:01:45]}  Bxe5 {[%clk 0:01:14]} 22. Nxd8 {[%clk 0:01:44]}  Bxd4 {[%clk 0:01:11]} 23. Nb7 {[%clk 0:01:43]}  c5 {[%clk 0:01:08]} 24. Na5 {[%clk 0:01:29]}  Rd8 {[%clk 0:00:58]} 25. Nc4 {[%clk 0:01:27]}  e5 {[%clk 0:00:52]} 26. Nxe5 {[%clk 0:01:19]}  Nb4 {[%clk 0:00:45]} 27. Bxb4 {[%clk 0:01:14]}  cxb4 {[%clk 0:00:45]} 28. Red1 {[%clk 0:01:00]}  Ke7 {[%clk 0:00:42]} 29. Nf3 {[%clk 0:00:54]}  Bb6 {[%clk 0:00:39]} 30. Rxd8 {[%clk 0:00:53]}  Kxd8 {[%clk 0:00:40]} 31. Ne5 {[%clk 0:00:50]}  a5 {[%clk 0:00:34]} 32. g4 {[%clk 0:00:39]}  f6 {[%clk 0:00:33]} 33. Nc4 {[%clk 0:00:39]}  Bc7 {[%clk 0:00:33]} 34. Rd1+ {[%clk 0:00:39]}  Ke7 {[%clk 0:00:32]} 35. Kg2 {[%clk 0:00:40]}  Bc6+ {[%clk 0:00:32]} 36. f3 {[%clk 0:00:40]}  a4 {[%clk 0:00:28]} 37. bxa4 {[%clk 0:00:37]}  Bxa4 {[%clk 0:00:28]} 38. Rb1 {[%clk 0:00:38]}  Bc6 {[%clk 0:00:16]} 39. Rxb4 {[%clk 0:00:37]}  Bd5 {[%clk 0:00:17]} 40. a4 {[%clk 0:00:34]}  Kd7 {[%clk 0:00:17]} 41. Nb6+ {[%clk 0:00:33]}  Kc6 {[%clk 0:00:15]} 42. Nxd5 {[%clk 0:00:33]}  Kxd5 {[%clk 0:00:16]} 43. a5 {[%clk 0:00:32]} 1-0


[Site "https://www.chess.com"]

[Event "Titled Tuesday Blitz March 15 Late 2022"]
[White "Babazada, Khazar"]
[Black "Melkumyan, Hrant"]
[WhiteFideId "13413554"]
[BlackFideId "13302485"]
[WhiteElo "2418"]
[BlackElo "2604"]
[Result "0-1"]
[Round "09"]
[TimeControl "180+1"]
[Date "2022.03.15"]
[WhiteClock "0:00:03"]
[BlackClock "0:00:04"]

1. e4 {[%clk 0:02:59]}  e5 {[%clk 0:02:56]} 2. Nf3 {[%clk 0:02:59]}  Nc6 {[%clk 0:02:55]} 3. Bb5 {[%clk 0:02:56]}  Nf6 {[%clk 0:02:54]} 4. O-O {[%clk 0:02:55]}  Nxe4 {[%clk 0:02:53]} 5. Re1 {[%clk 0:02:53]}  Nd6 {[%clk 0:02:53]} 6. Nxe5 {[%clk 0:02:49]}  Be7 {[%clk 0:02:53]} 7. Bf1 {[%clk 0:02:46]}  Nf5 {[%clk 0:02:52]} 8. Nxc6 {[%clk 0:02:40]}  dxc6 {[%clk 0:02:52]} 9. c3 {[%clk 0:02:35]}  O-O {[%clk 0:02:51]} 10. d4 {[%clk 0:02:35]}  Be6 {[%clk 0:02:51]} 11. Qf3 {[%clk 0:02:28]}  Qd7 {[%clk 0:02:50]} 12. Nd2 {[%clk 0:02:25]}  Rae8 {[%clk 0:02:49]} 13. Bc4 {[%clk 0:02:07]}  Bd6 {[%clk 0:02:44]} 14. Bxe6 {[%clk 0:02:03]}  fxe6 {[%clk 0:02:45]} 15. Qh3 {[%clk 0:01:59]}  e5 {[%clk 0:02:38]} 16. dxe5 {[%clk 0:01:56]}  Rxe5 {[%clk 0:02:38]} 17. Nf3 {[%clk 0:01:48]}  Rxe1+ {[%clk 0:02:26]} 18. Nxe1 {[%clk 0:01:49]}  Bc5 {[%clk 0:02:22]} 19. Nd3 {[%clk 0:01:43]}  Rd8 {[%clk 0:02:20]} 20. Bg5 {[%clk 0:01:33]}  Be7 {[%clk 0:01:51]} 21. Bxe7 {[%clk 0:01:33]}  Nxe7 {[%clk 0:01:52]} 22. Qxd7 {[%clk 0:01:30]}  Rxd7 {[%clk 0:01:53]} 23. Rd1 {[%clk 0:01:30]}  Ng6 {[%clk 0:01:50]} 24. f3 {[%clk 0:01:20]}  Ne5 {[%clk 0:01:25]} 25. Nf2 {[%clk 0:01:19]}  Rxd1+ {[%clk 0:01:25]} 26. Nxd1 {[%clk 0:01:20]}  Nd3 {[%clk 0:01:26]} 27. Kf1 {[%clk 0:01:18]}  c5 {[%clk 0:01:23]} 28. Ke2 {[%clk 0:01:16]}  c4 {[%clk 0:01:17]} 29. Kd2 {[%clk 0:01:14]}  Kf7 {[%clk 0:01:13]} 30. b3 {[%clk 0:01:10]}  cxb3 {[%clk 0:01:10]} 31. axb3 {[%clk 0:01:10]}  Nc5 {[%clk 0:01:08]} 32. b4 {[%clk 0:01:09]}  Nd7 {[%clk 0:01:06]} 33. Kd3 {[%clk 0:01:09]}  Ke6 {[%clk 0:01:06]} 34. Ne3 {[%clk 0:01:07]}  Ne5+ {[%clk 0:00:59]} 35. Kd4 {[%clk 0:01:04]}  b6 {[%clk 0:00:56]} 36. f4 {[%clk 0:00:53]}  Nd7 {[%clk 0:00:54]} 37. g4 {[%clk 0:00:50]}  c5+ {[%clk 0:00:50]} 38. Kc4 {[%clk 0:00:51]}  a6 {[%clk 0:00:40]} 39. bxc5 {[%clk 0:00:48]}  Nxc5 {[%clk 0:00:39]} 40. Nd5 {[%clk 0:00:41]}  Nd7 {[%clk 0:00:37]} 41. Nc7+ {[%clk 0:00:40]}  Kd6 {[%clk 0:00:31]} 42. Nxa6 {[%clk 0:00:41]}  Nf6 {[%clk 0:00:32]} 43. h3 {[%clk 0:00:40]}  Ne4 {[%clk 0:00:32]} 44. Kd4 {[%clk 0:00:31]}  Nf2 {[%clk 0:00:31]} 45. Ke3 {[%clk 0:00:31]}  Nxh3 {[%clk 0:00:28]} 46. Nb4 {[%clk 0:00:28]}  g5 {[%clk 0:00:23]} 47. f5 {[%clk 0:00:28]}  Nf4 {[%clk 0:00:23]} 48. Nc2 {[%clk 0:00:21]}  Nd5+ {[%clk 0:00:22]} 49. Kd4 {[%clk 0:00:19]}  Nf6 {[%clk 0:00:22]} 50. Ne3 {[%clk 0:00:19]}  b5 {[%clk 0:00:21]} 51. c4 {[%clk 0:00:18]}  b4 {[%clk 0:00:16]} 52. c5+ {[%clk 0:00:18]}  Kc6 {[%clk 0:00:14]} 53. Kc4 {[%clk 0:00:19]}  b3 {[%clk 0:00:13]} 54. Kxb3 {[%clk 0:00:19]}  Kxc5 {[%clk 0:00:14]} 55. Kc3 {[%clk 0:00:20]}  Ne4+ {[%clk 0:00:13]} 56. Kd3 {[%clk 0:00:18]}  Nd6 {[%clk 0:00:13]} 57. Nd1 {[%clk 0:00:17]}  Kd5 {[%clk 0:00:13]} 58. Nf2 {[%clk 0:00:16]}  Ke5 {[%clk 0:00:13]} 59. Ke3 {[%clk 0:00:16]}  Nc4+ {[%clk 0:00:13]} 60. Kf3 {[%clk 0:00:16]}  Kd4 {[%clk 0:00:14]} 61. Kg3 {[%clk 0:00:13]}  Ne5 {[%clk 0:00:14]} 62. f6 {[%clk 0:00:13]}  h6 {[%clk 0:00:13]} 63. Kh3 {[%clk 0:00:09]}  Nf7 {[%clk 0:00:13]} 64. Nh1 {[%clk 0:00:09]}  Ke5 {[%clk 0:00:11]} 65. Ng3 {[%clk 0:00:09]}  Kxf6 {[%clk 0:00:11]} 66. Nf5 {[%clk 0:00:08]}  Kg6 {[%clk 0:00:08]} 67. Kg3 {[%clk 0:00:08]}  Ne5 {[%clk 0:00:06]} 68. Ne7+ {[%clk 0:00:07]}  Kh7 {[%clk 0:00:06]} 69. Nf5 {[%clk 0:00:07]}  Nc6 {[%clk 0:00:05]} 70. Kf3 {[%clk 0:00:06]}  Ne5+ {[%clk 0:00:04]} 71. Kg3 {[%clk 0:00:06]}  Nf7 {[%clk 0:00:04]} 72. Kf3 {[%clk 0:00:06]}  Kg6 {[%clk 0:00:04]} 73. Ke4 {[%clk 0:00:06]}  Kf6 {[%clk 0:00:04]} 74. Ne3 {[%clk 0:00:02]}  Nd6+ {[%clk 0:00:04]} 75. Kd5 {[%clk 0:00:02]}  Nc8 {[%clk 0:00:02]} 76. Ke4 {[%clk 0:00:02]}  Ne7 {[%clk 0:00:02]} 77. Ng2 {[%clk 0:00:02]}  Ke6 {[%clk 0:00:01]} 78. Ne3 {[%clk 0:00:02]}  Ng8 {[%clk 0:00:02]} 79. Nf5 {[%clk 0:00:03]}  Nf6+ {[%clk 0:00:03]} 80. Kf3 {[%clk 0:00:03]}  Ng8 {[%clk 0:00:02]} 81. Ng7+ {[%clk 0:00:03]}  Kf7 {[%clk 0:00:02]} 82. Nf5 {[%clk 0:00:04]}  Kg6 {[%clk 0:00:03]} 83. Nd4 {[%clk 0:00:04]}  Nf6 {[%clk 0:00:03]} 84. Kg3 {[%clk 0:00:04]}  Ne4+ {[%clk 0:00:03]} 85. Kf3 {[%clk 0:00:05]}  Nc5 {[%clk 0:00:04]} 86. Kg3 {[%clk 0:00:05]}  Nd7 {[%clk 0:00:04]} 87. Kf3 {[%clk 0:00:05]}  Ne5+ {[%clk 0:00:05]} 88. Kg3 {[%clk 0:00:05]}  Kf6 {[%clk 0:00:05]} 89. Ne2 {[%clk 0:00:05]}  Nc6 {[%clk 0:00:05]} 90. Kf3 {[%clk 0:00:03]}  Ke5 {[%clk 0:00:05]} 91. Kg3 {[%clk 0:00:04]}  Nd4 {[%clk 0:00:05]} 92. Nc3 {[%clk 0:00:03]}  Ne6 {[%clk 0:00:03]} 93. Ne2 {[%clk 0:00:03]}  Nc5 {[%clk 0:00:03]} 94. Ng1 {[%clk 0:00:03]}  Ke4 {[%clk 0:00:03]} 95. Nh3 {[%clk 0:00:03]}  Ke3 {[%clk 0:00:03]} 96. Ng1 {[%clk 0:00:02]}  Ne4+ {[%clk 0:00:04]} 97. Kh3 {[%clk 0:00:03]}  Kf2 {[%clk 0:00:04]} 98. Kh2 {[%clk 0:00:03]}  Nf6 {[%clk 0:00:04]} 99. Nh3+ {[%clk 0:00:03]}  Kf3 {[%clk 0:00:04]} 0-1


[Site "https://www.chess.com"]

[Event "Titled Tuesday Blitz March 15 Late 2022"]
[White "Bilych, Olexiy"]
[Black "Bettalli, Francesco"]
[WhiteFideId "14156504"]
[BlackFideId "2816453"]
[WhiteElo "2176"]
[BlackElo "2216"]
[Result "1-0"]
[Round "09"]
[TimeControl "180+1"]
[Date "2022.03.16"]
[WhiteClock "0:00:07"]
[BlackClock "0:00:51"]

1. e4 {[%clk 0:03:00]}  e5 {[%clk 0:02:59]} 2. Nf3 {[%clk 0:03:00]}  Nf6 {[%clk 0:03:00]} 3. Nxe5 {[%clk 0:02:58]}  Nc6 {[%clk 0:03:00]} 4. Nxc6 {[%clk 0:02:55]}  dxc6 {[%clk 0:03:01]} 5. d3 {[%clk 0:02:55]}  Bc5 {[%clk 0:03:02]} 6. Be2 {[%clk 0:02:54]}  h5 {[%clk 0:03:02]} 7. h3 {[%clk 0:02:49]}  Qd6 {[%clk 0:03:01]} 8. Nc3 {[%clk 0:02:30]}  Be6 {[%clk 0:03:00]} 9. Bg5 {[%clk 0:02:27]}  O-O-O {[%clk 0:02:52]} 10. Qd2 {[%clk 0:02:24]}  Bb4 {[%clk 0:02:46]} 11. a3 {[%clk 0:02:19]}  Ba5 {[%clk 0:02:44]} 12. Be3 {[%clk 0:02:08]}  Kb8 {[%clk 0:02:39]} 13. O-O-O {[%clk 0:01:36]}  c5 {[%clk 0:02:32]} 14. f4 {[%clk 0:01:10]}  Qc6 {[%clk 0:02:28]} 15. Bf3 {[%clk 0:01:06]}  c4 {[%clk 0:02:18]} 16. f5 {[%clk 0:00:58]}  Bc8 {[%clk 0:02:10]} 17. Kb1 {[%clk 0:00:51]}  cxd3 {[%clk 0:02:07]} 18. cxd3 {[%clk 0:00:52]}  Qa6 {[%clk 0:02:00]} 19. Qc2 {[%clk 0:00:50]}  Nd7 {[%clk 0:01:58]} 20. Nd5 {[%clk 0:00:47]}  Ne5 {[%clk 0:01:51]} 21. Bf4 {[%clk 0:00:46]}  Nxf3 {[%clk 0:01:40]} 22. Nxc7 {[%clk 0:00:40]}  Qc6 {[%clk 0:01:39]} 23. Nd5+ {[%clk 0:00:34]}  Ka8 {[%clk 0:01:37]} 24. gxf3 {[%clk 0:00:34]}  Bxf5 {[%clk 0:01:34]} 25. Qxc6 {[%clk 0:00:29]}  bxc6 {[%clk 0:01:35]} 26. Ne3 {[%clk 0:00:25]}  Be6 {[%clk 0:01:34]} 27. Nc4 {[%clk 0:00:25]}  Bb6 {[%clk 0:01:24]} 28. Kc2 {[%clk 0:00:21]}  Bd4 {[%clk 0:01:24]} 29. b4 {[%clk 0:00:18]}  f6 {[%clk 0:01:21]} 30. Bd2 {[%clk 0:00:16]}  Rd7 {[%clk 0:01:20]} 31. Bc3 {[%clk 0:00:16]}  Rhd8 {[%clk 0:01:20]} 32. Bxd4 {[%clk 0:00:15]}  Rxd4 {[%clk 0:01:21]} 33. Ne3 {[%clk 0:00:16]}  c5 {[%clk 0:01:19]} 34. bxc5 {[%clk 0:00:15]}  Rc8 {[%clk 0:01:19]} 35. Kc3 {[%clk 0:00:14]}  Ra4 {[%clk 0:01:19]} 36. d4 {[%clk 0:00:14]}  Rxa3+ {[%clk 0:01:19]} 37. Kd2 {[%clk 0:00:14]}  Ra2+ {[%clk 0:01:18]} 38. Nc2 {[%clk 0:00:13]}  Rb8 {[%clk 0:01:19]} 39. Rb1 {[%clk 0:00:13]}  Bb3 {[%clk 0:01:18]} 40. Rhc1 {[%clk 0:00:09]}  a5 {[%clk 0:01:12]} 41. Kc3 {[%clk 0:00:08]}  a4 {[%clk 0:01:11]} 42. Nb4 {[%clk 0:00:08]}  Rf2 {[%clk 0:01:11]} 43. Rf1 {[%clk 0:00:05]}  Rh2 {[%clk 0:01:11]} 44. c6 {[%clk 0:00:03]}  Ka7 {[%clk 0:01:03]} 45. d5 {[%clk 0:00:01]}  Kb6 {[%clk 0:01:03]} 46. Nd3 {[%clk 0:00:02]}  Rc2+ {[%clk 0:00:59]} 47. Kd4 {[%clk 0:00:02]}  Rc4+ {[%clk 0:00:59]} 48. Ke3 {[%clk 0:00:03]}  Rc3 {[%clk 0:00:58]} 49. Rfc1 {[%clk 0:00:03]}  Rxc1 {[%clk 0:00:57]} 50. Rxc1 {[%clk 0:00:04]}  Ra8 {[%clk 0:00:53]} 51. d6 {[%clk 0:00:05]}  a3 {[%clk 0:00:53]} 52. c7 {[%clk 0:00:05]}  a2 {[%clk 0:00:52]} 53. f4 {[%clk 0:00:05]}  Kb7 {[%clk 0:00:51]} 54. Nc5+ {[%clk 0:00:06]}  Kc6 {[%clk 0:00:50]} 55. Nxb3+ {[%clk 0:00:07]}  Kxd6 {[%clk 0:00:50]} 56. c8=Q {[%clk 0:00:06]}  Rxc8 {[%clk 0:00:50]} 57. Rxc8 {[%clk 0:00:07]}  f5 {[%clk 0:00:50]} 58. e5+ {[%clk 0:00:07]}  Ke7 {[%clk 0:00:50]} 59. Rc1 {[%clk 0:00:07]}  g5 {[%clk 0:00:51]} 60. Ra1 {[%clk 0:00:07]} 1-0


[Site "https://www.chess.com"]